lending/lending_fUSD_20260310
["ID","MTS","AMOUNT","RATE_DAILY","PERIOD"]
[408085292,1773126636359,-500.0,0.00018477,2]
[408085293,1773126636368,-500.0,0.00018477,2]
[408085294,1773126636377,-389.11177127,0.00018477,2]
[408085295,1773126636386,-500.0,0.00018477,2]
[408085296,1773126636395,-500.0,0.00018477,2]
[408085297,1773126636404,-500.0,0.00018477,2]
[408085298,1773126636414,-500.0,0.00018477,2]
[408085299,1773126636423,-500.0,0.00018477,2]
[408085300,1773126636432,-500.0,0.00018477,2]
[408085301,1773126636441,-500.0,0.00018477,2]
[408085302,1773126636452,-500.0,0.00018477,2]
[408085303,1773126636465,-500.0,0.00018477,2]
[408085304,1773126636475,-500.0,0.00018477,2]
[408085305,1773126636486,-500.0,0.00018477,2]
[408085306,1773126636497,-251.59086174,0.00018477,2]
[408085307,1773126636509,-500.0,0.00018477,2]
[408085308,1773126636518,-500.0,0.00018477,2]
[408085309,1773126636527,-500.0,0.00018477,2]
[408085310,1773126636536,-500.0,0.00018477,2]
[408085311,1773126636546,-500.0,0.00018477,2]
[408085312,1773126636556,-500.0,0.00018477,2]
[408085313,1773126636565,-500.0,0.00018477,2]
[408085314,1773126636575,-500.0,0.00018477,2]
[408085315,1773126636585,-500.0,0.00018477,2]
[408085316,1773126636594,-500.0,0.00018477,2]
[408085317,1773126636604,-500.0,0.00018477,2]
[408085318,1773126636615,-500.0,0.00018477,2]
[408085319,1773126636624,-500.0,0.00018477,2]
[408085320,1773126636635,-500.0,0.00018477,2]
[408085321,1773126636644,-151.0,0.00018486,2]
[408085322,1773126636653,-151.0,0.00018486,2]
[408085323,1773126636663,-151.0,0.00018486,2]
[408085324,1773126636672,-500.0,0.000185,2]
[408085325,1773126636682,-500.0,0.000185,2]
[408085326,1773126636692,-501.16014456,0.000185,2]
[408085327,1773126636702,-500.0,0.000185,2]
[408085328,1773126636711,-500.0,0.000185,2]
[408085329,1773126636720,-500.0,0.000185,2]
[408085330,1773126636730,-500.0,0.000185,2]
[408085331,1773126636739,-151.0,0.000185,2]
[408085332,1773126636748,-151.0,0.000185,2]
[408085333,1773126636759,-800.0,0.000185,6]
[408085334,1773126636768,-500.0,0.00018505,2]
[408085335,1773126636778,-388.21,0.00018517,2]
[408085336,1773126636787,-500.0,0.00018521,2]
[408085337,1773126636797,-10756.44220543,0.00018598,2]
[408085338,1773126636806,-1600.0,0.000186,6]
[408085339,1773126636815,-781.59,0.0001865,2]
[408085340,1773126636825,-2400.0,0.000187,6]
[408085341,1773126636834,-597.06,0.00018705,2]
[408085342,1773126636843,-44219.7012959,0.00018711,2]
[408085343,1773126636852,-3240.0,0.00018733,2]
[408085344,1773126636861,-200.0,0.00018744,2]
[408085345,1773126636871,-3200.0,0.000188,6]
[408085346,1773126636881,-183.378566,0.0001881,7]
[408085347,1773126636890,-1589.0,0.00018824,2]
[408085348,1773126636899,-358.58275802,0.00018836,2]
[408085349,1773126636908,-481.42,0.00018836,2]
[408085350,1773126636917,-481.41,0.00018836,2]
[408085351,1773126636926,-354.3,0.00018836,2]
[408085352,1773126636937,-201.40872416,0.00018838,2]
[408085353,1773126636948,-150.0,0.00018838,2]
[408085354,1773126636957,-500.0,0.00018838,2]
[408085355,1773126636966,-150.0,0.00018838,2]
[408085356,1773126636975,-150.0,0.00018838,2]
[408085357,1773126636986,-500.0,0.00018838,2]
[408085358,1773126636995,-500.0,0.00018838,2]
[408085359,1773126637006,-537.65,0.00018853,2]
[408085360,1773126637017,-20321.65268501,0.00018887,2]
[408085361,1773126637027,-150.0,0.00018893,2]
[408085362,1773126637036,-505.15710093,0.00018893,2]
[408085363,1773126637045,-150.0,0.00018893,2]
[408085364,1773126637055,-150.0,0.00018893,2]
[408085365,1773126637064,-505.92642885,0.00018893,2]
[408085366,1773126637074,-502.95539105,0.00018893,2]
[408085367,1773126637083,-4000.0,0.000189,6]
[408085368,1773126637093,-782.52338412,0.00018904,2]
[408085369,1773126637102,-10756.44220543,0.00018916,2]
[408085370,1773126637113,-781.59,0.00018924,2]
[408085371,1773126637122,-150.0,0.00018948,2]
[408085372,1773126637131,-202.57005248,0.00018948,2]
[408085373,1773126637140,-150.0,0.00018948,2]
[408085374,1773126637149,-151.0,0.00018948,2]
[408085375,1773126637158,-151.0,0.00018948,2]
[408085376,1773126637167,-500.0,0.00018969,7]
[408085377,1773126637176,-500.0,0.00018969,7]
[408085378,1773126637186,-500.0,0.00018969,7]
[408085379,1773126637195,-500.0,0.00018969,7]
[408085380,1773126637204,-500.0,0.00018969,7]
[408085381,1773126637214,-500.0,0.00018969,7]
[408085382,1773126637223,-500.0,0.00018969,7]
[408085383,1773126637232,-500.0,0.00018969,7]
[408085384,1773126637241,-500.0,0.00018969,7]
[408085385,1773126637252,-500.0,0.00018969,7]
[408085386,1773126637262,-500.0,0.00018969,7]
[408085387,1773126637272,-526.12,0.00018969,7]
[408085388,1773126637281,-500.0,0.00018969,7]
[408085389,1773126637290,-500.0,0.00018969,7]
[408085390,1773126637299,-356.06,0.00018969,7]
[408085391,1773126637308,-172.91703981,0.00018969,7]
[408085392,1773126637317,-250.0,0.00018973,2]
[408085393,1773126637327,-172.0,0.00018975,2]
[408085394,1773126637336,-151.0,0.00018978,2]
[408085395,1773126637345,-293.85124375,0.00018978,2]
[408085396,1773126637354,-151.0,0.00018978,2]
[408085397,1773126637363,-151.0,0.00018978,2]
[408085398,1773126637372,-151.0,0.00018978,2]
[408085399,1773126637381,-416.61366127,0.00018978,2]
[408085400,1773126637391,-177.53562892,0.00018978,3]
[408085401,1773126637400,-2360.26627369,0.00018978,2]
[408085402,1773126637409,-1179.0,0.00018986,2]
[408085403,1773126637420,-691.0,0.00018987,2]
[408085404,1773126637429,-150.0,0.00018987,2]
[408085405,1773126637438,-150.0,0.00018987,2]
[408085406,1773126637447,-150.0,0.00018987,2]
[408085407,1773126637457,-150.0,0.00018987,2]
[408085408,1773126637466,-232.0,0.00018987,2]
[408085409,1773126637475,-6859.36018721,0.0001899,2]
[408085410,1773126637484,-243.22198,0.0001899,2]
[408085411,1773126637493,-243.22198,0.0001899,2]
[408085412,1773126637504,-20321.65268496,0.00018996,2]
[408085413,1773126637513,-150.0,0.00019002,2]
[408085414,1773126637522,-150.51346149,0.00019002,2]
[408085415,1773126637531,-282.71673119,0.00019005,2]
[408085416,1773126637541,-1000.0,0.00019005,2]
[408085417,1773126637550,-187.78006525,0.00019005,2]
[408085418,1773126637559,-200.0,0.00019005,2]
[408085419,1773126637569,-455.71487065,0.00019005,2]
[408085420,1773126637578,-159.99163251,0.00019014,2]
[408085421,1773126637587,-514.81,0.00019038,2]
[408085422,1773126637596,-5727.0,0.00019041,2]
[408085423,1773126637606,-597.06,0.00019042,2]
[408085424,1773126637615,-1000.0,0.00019048,2]
[408085425,1773126637624,-1000.0,0.00019048,2]
[408085426,1773126637633,-1000.0,0.00019048,2]
[408085427,1773126637642,-1000.0,0.00019048,2]
[408085428,1773126637651,-1000.0,0.00019048,2]
[408085429,1773126637660,-1000.0,0.00019048,2]
[408085430,1773126637669,-200.0,0.00019057,2]
[408085431,1773126637678,-587.0,0.00019067,2]
[408085432,1773126637687,-154.97082588,0.00019068,2]
[408085433,1773126637696,-150.0,0.00019068,2]
[408085434,1773126637705,-209.37582631,0.00019068,2]
[408085435,1773126637716,-150.0,0.00019068,2]
[408085436,1773126637725,-150.0,0.00019068,2]
[408085437,1773126637735,-150.0,0.00019068,2]
[408085438,1773126637745,-239.07783332,0.00019068,2]
[408085439,1773126637756,-150.0,0.00019068,2]
[408085440,1773126637766,-150.0,0.00019068,2]
[408085441,1773126637775,-150.0,0.00019068,2]
[408085442,1773126637784,-150.0,0.00019068,2]
[408085443,1773126637796,-150.0,0.00019068,2]
[408085444,1773126637806,-150.0,0.00019068,2]
[408085445,1773126637816,-150.0,0.00019068,2]
[408085446,1773126637825,-150.0,0.00019068,2]
[408085447,1773126637835,-150.0,0.00019068,2]
[408085448,1773126637845,-150.0,0.00019068,2]
[408085449,1773126637855,-1318.795,0.0001907,2]
[408085450,1773126637866,-166.935,0.0001907,2]
[408085451,1773126637875,-500.0,0.00019073,2]
[408085452,1773126637885,-546.41439275,0.00019073,2]
[408085453,1773126637895,-500.0,0.00019073,2]
[408085454,1773126637904,-511.22965284,0.00019073,2]
[408085455,1773126637914,-500.0,0.00019073,2]
[408085456,1773126637930,-500.0,0.00019073,2]
[408085457,1773126637939,-500.99472326,0.00019073,2]
[408085458,1773126637948,-500.0,0.00019073,2]
[408085460,1773126637957,-500.0,0.00019073,2]
[408085461,1773126637968,-548.41008643,0.00019073,2]
[408085462,1773126637977,-500.0,0.00019073,2]
[408085463,1773126637986,-500.0,0.00019073,2]
[408085464,1773126637997,-500.0,0.00019073,2]
[408085465,1773126638007,-505.74549276,0.00019073,2]
[408085466,1773126638016,-500.0,0.00019073,2]
[408085467,1773126638025,-500.0,0.00019073,2]
[408085468,1773126638035,-500.0,0.00019073,2]
[408085469,1773126638044,-500.0,0.00019073,2]
[408085470,1773126638054,-500.28250198,0.00019073,2]
[408085471,1773126638063,-500.0,0.00019073,2]
[408085472,1773126638072,-502.86209366,0.00019073,2]
[408085473,1773126638082,-502.11071915,0.00019073,2]
[408085474,1773126638091,-500.0,0.00019073,2]
[408085475,1773126638101,-500.0,0.00019073,2]
[408085476,1773126638110,-1398.9931,0.00019074,2]
[408085477,1773126638120,-442.0,0.00019076,2]
[408085478,1773126638129,-500.0,0.00019077,2]
[408085479,1773126638138,-500.0,0.00019077,2]
[408085480,1773126638147,-500.0,0.00019077,2]
[408085481,1773126638156,-500.0,0.00019077,2]
[408085482,1773126638167,-500.0,0.00019077,2]
[408085483,1773126638176,-500.0,0.00019077,2]
[408085484,1773126638186,-500.0,0.00019077,2]
[408085485,1773126638196,-500.0,0.00019077,2]
[408085486,1773126638206,-164.74675096,0.00019077,2]
[408085487,1773126638216,-500.0,0.00019077,2]
[408085488,1773126638226,-500.0,0.00019077,2]
[408085489,1773126638236,-500.0,0.00019077,2]
[408085490,1773126638245,-187.01471562,0.00019077,2]
[408085491,1773126638259,-500.0,0.00019077,2]
[408085492,1773126638268,-500.0,0.00019077,2]
[408085493,1773126638278,-500.0,0.00019077,2]
[408085494,1773126638288,-500.0,0.00019077,2]
[408085495,1773126638299,-500.0,0.00019077,2]
[408085496,1773126638309,-500.0,0.00019077,2]
[408085497,1773126638319,-500.0,0.00019077,2]
[408085498,1773126638328,-500.0,0.00019077,2]
[408085499,1773126638338,-500.0,0.00019077,2]
[408085500,1773126638348,-528.10672179,0.00019077,2]
[408085501,1773126638357,-500.0,0.00019077,2]
[408085502,1773126638367,-500.0,0.00019077,2]
[408085503,1773126638377,-500.0,0.00019077,2]
[408085504,1773126638386,-500.0,0.00019077,2]
[408085505,1773126638397,-500.0,0.00019077,2]
[408085506,1773126638406,-500.0,0.00019077,2]
[408085507,1773126638415,-500.0,0.00019077,2]
[408085508,1773126638426,-500.0,0.00019077,2]
[408085509,1773126638435,-377.47610794,0.00019077,2]
[408085510,1773126638444,-500.0,0.00019077,2]
[408085511,1773126638453,-585.77667999,0.00019077,2]
[408085512,1773126638462,-500.0,0.00019077,2]
[408085513,1773126638472,-500.0,0.00019077,2]
[408085514,1773126638480,-536.50967307,0.00019077,2]
[408085515,1773126638489,-500.0,0.00019077,2]
[408085516,1773126638499,-500.0,0.00019077,2]
[408085517,1773126638514,-500.0,0.00019077,2]
[408085518,1773126638523,-500.0,0.00019077,2]
[408085519,1773126638532,-500.0,0.00019077,2]
[408085520,1773126638542,-500.0,0.00019077,2]
[408085521,1773126638551,-500.0,0.00019077,2]
[408085522,1773126638560,-500.0,0.00019077,2]
[408085523,1773126638570,-500.0,0.00019077,2]
[408085524,1773126638579,-500.0,0.00019077,2]
[408085526,1773126638588,-500.0,0.00019077,2]
[408085528,1773126638597,-171.97588501,0.00019077,2]
[408085530,1773126638606,-500.0,0.00019077,2]
[408085532,1773126638616,-500.0,0.00019077,2]
[408085534,1773126638625,-500.0,0.00019077,2]
[408085536,1773126638634,-500.0,0.00019077,2]
[408085538,1773126638644,-500.0,0.00019077,2]
[408085540,1773126638653,-515.34564345,0.00019077,2]
[408085542,1773126638663,-500.0,0.00019077,2]
[408085544,1773126638672,-160.182804,0.00019078,2]
[408085545,1773126638682,-153.368128,0.00019078,2]
[408085546,1773126638691,-151.0,0.00019078,2]
[408085547,1773126638701,-151.0,0.00019078,2]
[408085548,1773126638710,-204.931279,0.00019078,2]
[408085549,1773126638719,-204.931279,0.00019078,2]
[408085550,1773126638729,-204.931279,0.00019078,2]
[408085551,1773126638738,-204.931279,0.00019078,2]
[408085552,1773126638748,-151.0,0.00019078,2]
[408085553,1773126638759,-151.0,0.00019078,2]
[408085554,1773126638769,-151.0,0.00019078,2]
[408085555,1773126638779,-151.0,0.00019078,2]
[408085556,1773126638788,-151.0,0.00019078,2]
[408085557,1773126638799,-23202.4899,0.00019078,2]
[408085558,1773126638810,-4571.5357,0.00019078,2]
[408085559,1773126638820,-1164289.47999713,0.00019078,2]
[408085560,1773126639843,-905.49547409,0.00019078,2]
[408085562,1773126640588,-500.0,0.00017437,2]
[408085563,1773126640599,-1094131.23562878,0.00019078,2]
[408085564,1773126640611,-1000.0,0.00019078,2]
[408085565,1773126640620,-4511.0026,0.00019078,2]
[408085566,1773126640629,-1803.3396288,0.00019078,2]
[408085567,1773126640638,-501.78088933,0.00019078,2]
[408085568,1773126640648,-29926.58887502,0.00019078,2]
[408085569,1773126640656,-1476.0,0.00019082,2]
[408085570,1773126640667,-150.0,0.0001909,2]
[408085571,1773126640676,-159.99163251,0.00019096,2]
[408085572,1773126640685,-20321.65268496,0.00019105,2]
[408085573,1773126640695,-996.83,0.00019106,2]
[408085574,1773126640704,-150.0,0.00019111,2]
[408085575,1773126640713,-150.0,0.00019112,2]
[408085576,1773126640722,-150.0,0.00019115,2]
[408085577,1773126640731,-150.0,0.00019123,2]
[408085578,1773126640740,-150.0,0.00019127,2]
[408085579,1773126640749,-150.0,0.00019133,2]
[408085580,1773126640760,-150.0,0.00019153,2]
[408085581,1773126640770,-150.0,0.00019153,2]
[408085582,1773126640781,-150.0,0.00019155,2]
[408085583,1773126640792,-157.0,0.00019157,30]
[408085584,1773126640803,-150.0,0.00019162,2]
[408085585,1773126640814,-151.0,0.00019164,2]
[408085586,1773126640824,-155.304,0.00019166,2]
[408085587,1773126640835,-154.97082588,0.00019168,2]
[408085588,1773126640846,-276.0,0.0001917,30]
[408085589,1773126640856,-1106.73489725,0.0001917,2]
[408085590,1773126640866,-500.0,0.00019173,2]
[408085591,1773126640875,-502.93885847,0.00019173,2]
[408085592,1773126640886,-500.0,0.00019173,2]
[408085593,1773126640898,-500.0,0.00019173,2]
[408085594,1773126640908,-501.85682544,0.00019173,2]
[408085595,1773126640917,-500.0,0.00019173,2]
[408085596,1773126640931,-500.0,0.00019173,2]
[408085597,1773126640943,-500.0,0.00019173,2]
[408085598,1773126640954,-500.0,0.00019173,2]
[408085599,1773126640964,-500.0,0.00019173,2]
[408085600,1773126640973,-500.0,0.00019173,2]
[408085601,1773126640983,-169.0731941,0.00019173,2]
[408085602,1773126640992,-500.0,0.00019173,2]
[408085603,1773126641003,-501.63268957,0.00019173,2]
[408085604,1773126641013,-500.0,0.00019173,2]
[408085605,1773126641022,-162.97773203,0.00019173,2]
[408085606,1773126641032,-500.0,0.00019173,2]
[408085607,1773126641041,-500.0,0.00019173,2]
[408085608,1773126641051,-606.33356437,0.00019173,2]
[408085609,1773126641061,-500.0,0.00019173,2]
[408085610,1773126641070,-517.04531705,0.00019173,2]
[408085611,1773126641079,-186.98184707,0.00019173,2]
[408085612,1773126641088,-500.9245029,0.00019173,2]
[408085613,1773126641098,-161.89576074,0.00019173,2]
[408085614,1773126641107,-500.0,0.00019173,2]
[408085615,1773126641116,-500.0,0.00019173,2]
[408085617,1773126641126,-500.0,0.00019173,2]
[408085618,1773126641135,-162.44450459,0.00019173,2]
[408085619,1773126641143,-500.0,0.00019173,2]
[408085620,1773126641153,-500.0,0.00019173,2]
[408085621,1773126641162,-382.15456314,0.00019173,2]
[408085622,1773126641171,-500.0,0.00019173,2]
[408085623,1773126641182,-385.96640857,0.00019173,2]
[408085624,1773126641192,-500.0,0.00019173,2]
[408085625,1773126641202,-501.94680921,0.00019173,2]
[408085626,1773126641212,-163.1799165,0.00019173,2]
[408085627,1773126641221,-502.53902895,0.00019173,2]
[408085628,1773126641230,-501.93069578,0.00019173,2]
[408085629,1773126641239,-500.0,0.00019173,2]
[408085630,1773126641248,-501.70326432,0.00019173,2]
[408085631,1773126641258,-500.0,0.00019173,2]
[408085632,1773126641267,-500.0,0.00019173,2]
[408085633,1773126641276,-500.0,0.00019173,2]
[408085634,1773126641286,-379.80583621,0.00019173,2]
[408085635,1773126641295,-165.0,0.00019173,2]
[408085636,1773126641305,-177.34355972,0.00019173,2]
[408085637,1773126641314,-500.0,0.00019173,2]
[408085638,1773126641323,-160.35587644,0.00019173,2]
[408085639,1773126641332,-500.0,0.00019173,2]
[408085640,1773126641341,-500.0,0.00019173,2]
[408085641,1773126641350,-500.0,0.00019173,2]
[408085642,1773126641359,-500.0,0.00019173,2]
[408085643,1773126641368,-190.47297337,0.00019173,2]
[408085644,1773126641378,-500.0,0.00019173,2]
[408085645,1773126641386,-500.0,0.00019173,2]
[408085646,1773126641395,-500.0,0.00019173,2]
[408085647,1773126641403,-500.0,0.00019173,2]
[408085648,1773126641412,-500.0,0.00019173,2]
[408085649,1773126641421,-500.0,0.00019173,2]
[408085650,1773126641430,-500.0,0.00019173,2]
[408085651,1773126641440,-500.0,0.00019173,2]
[408085652,1773126641449,-500.0,0.00019173,2]
[408085653,1773126641459,-162.48523304,0.00019173,2]
[408085654,1773126641467,-488.92262077,0.00019173,2]
[408085655,1773126641478,-151.0,0.00019175,2]
[408085656,1773126641488,-151.0,0.00019175,2]
[408085657,1773126641498,-151.0,0.00019175,2]
[408085658,1773126641509,-150.0,0.00019177,2]
[408085659,1773126641519,-500.0,0.00019177,2]
[408085660,1773126641528,-500.0,0.00019177,2]
[408085661,1773126641538,-500.0,0.00019177,2]
[408085662,1773126641547,-500.0,0.00019177,2]
[408085663,1773126641557,-500.0,0.00019177,2]
[408085664,1773126641567,-500.0,0.00019177,2]
[408085665,1773126641577,-500.0,0.00019177,2]
[408085666,1773126641586,-500.0,0.00019177,2]
[408085667,1773126641596,-500.0,0.00019177,2]
[408085668,1773126641607,-500.0,0.00019177,2]
[408085669,1773126641616,-500.0,0.00019177,2]
[408085670,1773126641626,-500.0,0.00019177,2]
[408085671,1773126641635,-500.0,0.00019177,2]
[408085672,1773126641644,-500.0,0.00019177,2]
[408085673,1773126641653,-236.67377231,0.00019178,2]
[408085674,1773126641661,-1988.31717727,0.00019178,2]
[408085675,1773126641670,-200.0,0.00019178,2]
[408085676,1773126641679,-13551.4120461,0.00019178,2]
[408085677,1773126641688,-580458.35300667,0.00019178,2]
[408085678,1773126641701,-2638.15312271,0.00019178,2]
[408085679,1773126641712,-1132.68254729,0.00019178,2]
[408085680,1773126641724,-3821.7392576,0.00019178,2]
[408085681,1773126641736,-49249.03429514,0.00019178,2]
[408085682,1773126641755,-6713.72108542,0.00019178,2]
[408085683,1773126641928,-739.54739379,0.00019178,2]
[408085684,1773126641943,-3144.80640001,0.00019178,2]
[408085685,1773126641956,-1047.87452268,0.00019178,2]
[408085686,1773126641970,-487.58257122,0.00019178,2]
[408085687,1773126641997,-100240.88820687,0.00019178,2]
[408085688,1773126642007,-3257.8637089,0.00019178,2]
[408085689,1773126642016,-200.0,0.00019178,2]
[408085690,1773126642026,-151.0,0.00019178,2]
[408085691,1773126642036,-154.683502,0.00019178,2]
[408085692,1773126642045,-151.0,0.00019178,2]
[408085693,1773126642056,-151.0,0.00019178,2]
[408085694,1773126642066,-204.931279,0.00019178,2]
[408085695,1773126642075,-204.931279,0.00019178,2]
[408085696,1773126642331,-204.931279,0.00019178,2]
[408085697,1773126642341,-204.931279,0.00019178,2]
[408085698,1773126642351,-204.931279,0.00019178,2]
[408085699,1773126642360,-204.931279,0.00019178,2]
[408085700,1773126642369,-204.931279,0.00019178,2]
[408085701,1773126642378,-204.931279,0.00019178,2]
[408085702,1773126642387,-204.931279,0.00019178,2]
[408085703,1773126642396,-204.931279,0.00019178,2]
[408085704,1773126642405,-204.931279,0.00019178,2]
[408085705,1773126642414,-204.931279,0.00019178,2]
[408085706,1773126642423,-151.0,0.00019178,2]
[408085707,1773126642432,-151.0,0.00019178,2]
[408085708,1773126642442,-151.0,0.00019178,2]
[408085709,1773126642451,-151.0,0.00019178,2]
[408085710,1773126642460,-209.26152,0.00019178,2]
[408085711,1773126642470,-243.22198,0.00019178,2]
[408085712,1773126642479,-243.22198,0.00019178,2]
[408085713,1773126642488,-243.22198,0.00019178,2]
[408085714,1773126642498,-243.22198,0.00019178,2]
[408085715,1773126642507,-150.0,0.00019178,2]
[408085716,1773126642516,-150.0,0.00019178,2]
[408085717,1773126642526,-184.64956875,0.00019178,2]
[408085718,1773126642535,-626.93,0.00019178,2]
[408085719,1773126642544,-151.0,0.00019178,2]
[408085720,1773126642553,-162.047308,0.00019178,2]
[408085721,1773126642562,-151.0,0.00019178,2]
[408085722,1773126642572,-151.0,0.00019178,2]
[408085723,1773126642581,-155.42895,0.00019178,2]
[408085724,1773126642590,-162.671328,0.00019178,2]
[408085725,1773126642599,-318.753976,0.00019178,2]
[408085726,1773126642608,-318.753976,0.00019178,2]
[408085727,1773126642618,-318.753976,0.00019178,2]
[408085728,1773126642626,-318.753976,0.00019178,2]
[408085729,1773126642635,-318.753976,0.00019178,2]
[408085730,1773126642644,-318.753976,0.00019178,2]
[408085731,1773126642654,-318.753976,0.00019178,2]
[408085732,1773126642663,-318.753976,0.00019178,2]
[408085733,1773126642674,-151.0,0.00019178,2]
[408085734,1773126642684,-151.0,0.00019178,2]
[408085735,1773126642693,-151.0,0.00019178,2]
[408085736,1773126642703,-151.0,0.00019178,2]
[408085737,1773126642712,-151.0,0.00019178,2]
[408085738,1773126642722,-151.0,0.00019178,2]
[408085739,1773126642731,-151.0,0.00019178,2]
[408085740,1773126642741,-151.0,0.00019178,2]
[408085741,1773126642751,-151.0,0.00019178,2]
[408085742,1773126642760,-151.0,0.00019178,2]
[408085743,1773126642776,-151.0,0.00019178,2]
[408085744,1773126642785,-265.29247334,0.00019178,2]
[408085745,1773126642794,-151.0,0.00019178,2]
[408085746,1773126642803,-151.0,0.00019178,2]
[408085747,1773126642812,-151.0,0.00019178,2]
[408085748,1773126642821,-151.0,0.00019178,2]
[408085749,1773126642830,-151.0,0.00019178,2]
[408085750,1773126642839,-151.0,0.00019178,2]
[408085751,1773126642849,-151.0,0.00019178,2]
[408085752,1773126642860,-151.0,0.00019178,2]
[408085753,1773126642870,-151.0,0.00019178,2]
[408085754,1773126642879,-151.0,0.00019178,2]
[408085755,1773126642888,-151.0,0.00019178,2]
[408085756,1773126642897,-151.0,0.00019178,2]
[408085757,1773126642906,-151.0,0.00019178,2]
[408085758,1773126642915,-198.452314,0.00019178,2]
[408085759,1773126642928,-151.0,0.00019178,2]
[408085760,1773126642938,-151.0,0.00019178,2]
[408085761,1773126642948,-151.0,0.00019178,2]
[408085762,1773126642957,-159.114405,0.00019178,2]
[408085763,1773126642968,-159.99163251,0.00019178,2]
[408085764,1773126642977,-718.616818,0.00019178,2]
[408085765,1773126642986,-718.616818,0.00019178,2]
[408085766,1773126642996,-718.616818,0.00019178,2]
[408085767,1773126643005,-718.616818,0.00019178,2]
[408085768,1773126643014,-718.616818,0.00019178,2]
[408085769,1773126643024,-718.616818,0.00019178,2]
[408085770,1773126643034,-718.616818,0.00019178,2]
[408085771,1773126643043,-718.616818,0.00019178,2]
[408085772,1773126643052,-718.616818,0.00019178,2]
[408085773,1773126643061,-718.616818,0.00019178,2]
[408085774,1773126643070,-718.616818,0.00019178,2]
[408085775,1773126643079,-718.616818,0.00019178,2]
[408085776,1773126643088,-601.048346,0.00019178,2]
[408085777,1773126643097,-601.048346,0.00019178,2]
[408085778,1773126643106,-601.048346,0.00019178,2]
[408085779,1773126643115,-601.048346,0.00019178,2]
[408085780,1773126643125,-601.048346,0.00019178,2]
[408085781,1773126643134,-601.048346,0.00019178,2]
[408085782,1773126643143,-601.048346,0.00019178,2]
[408085783,1773126643152,-601.048346,0.00019178,2]
[408085784,1773126643161,-601.048346,0.00019178,2]
[408085786,1773126643170,-601.048346,0.00019178,2]
[408085788,1773126643179,-601.048346,0.00019178,2]
[408085789,1773126643188,-601.048346,0.00019178,2]
[408085791,1773126643197,-184.906114,0.00019178,2]
[408085794,1773126643206,-184.906114,0.00019178,2]
[408085797,1773126643215,-184.906114,0.00019178,2]
[408085801,1773126643224,-184.906114,0.00019178,2]
[408085803,1773126643233,-184.906114,0.00019178,2]
[408085805,1773126643243,-184.906114,0.00019178,2]
[408085806,1773126643252,-184.906114,0.00019178,2]
[408085808,1773126643262,-184.906114,0.00019178,2]
[408085809,1773126643271,-184.906114,0.00019178,2]
[408085810,1773126643280,-184.906114,0.00019178,2]
[408085811,1773126643289,-184.906114,0.00019178,2]
[408085812,1773126643298,-184.906114,0.00019178,2]
[408085813,1773126643307,-151.0,0.00019178,2]
[408085814,1773126643316,-151.0,0.00019178,2]
[408085815,1773126643326,-151.0,0.00019178,2]
[408085816,1773126643335,-151.0,0.00019178,2]
[408085817,1773126643345,-151.0,0.00019178,2]